fUSD/lending_fUSD_20260322
["ID","MTS","AMOUNT","RATE_DAILY","PERIOD"]
[408737988,1774182632285,-5000.0,0.0001078,2]
[408737989,1774182632294,-219.40284227,0.000108,2]
[408737990,1774182632304,-332.72420241,0.000108,2]
[408737991,1774182632313,-1034.02987452,0.000108,2]
[408737992,1774182632322,-1000.0,0.000108,3]
[408737993,1774182632332,-1000.0,0.000108,3]
[408737994,1774182632341,-166.08424682,0.00010818,2]
[408737995,1774182632351,-255735.98245326,0.00010828,2]
[408737996,1774182632362,-58357.65780336,0.00010828,2]
[408738000,1774182637857,-3419.0500005,0.00010828,2]
[408738001,1774182637911,-2182487.30974288,0.00010828,2]
[408738002,1774182637921,-3527.0394,0.00010847,2]
[408738003,1774182637931,-2500.0,0.00010848,2]
[408738004,1774182637941,-37.44578561,0.00010848,2]
[408738005,1774182637951,-1216.8391548,0.00010848,2]
[408738006,1774182637961,-263.83642896,0.00010848,2]
[408738007,1774182637971,-869.84189308,0.00010849,2]
[408738008,1774182637981,-4440.6098819,0.00010849,2]
[408738009,1774182637992,-500.0,0.00010873,2]
[408738010,1774182638003,-500.0,0.00010873,2]
[408738011,1774182638014,-500.0,0.00010873,2]
[408738012,1774182638024,-1400.0,0.000109,3]
[408738014,1774182638036,-1300.0,0.000109,3]
[408738016,1774182638046,-1190.37877775,0.000109,2]
[408738018,1774182638056,-31403.46564837,0.00010928,2]
[408738019,1774182638066,-154.904,0.00010937,2]
[408738020,1774182638076,-3398.415,0.00010937,2]
[408738021,1774182638086,-4835.85,0.00010937,2]
[408738023,1774182638096,-430.93,0.00010937,2]
[408738025,1774182638106,-499.99,0.00010937,2]
[408738027,1774182638115,-572.71,0.00010937,2]
[408738029,1774182638125,-151.0,0.00010941,2]
[408738031,1774182638135,-151.0,0.00010941,2]
[408738033,1774182638144,-151.0,0.00010941,2]
[408738035,1774182638154,-151.0,0.00010941,2]
[408738037,1774182638164,-151.0,0.00010941,2]
[408738039,1774182638174,-151.0,0.00010941,2]
[408738041,1774182638183,-151.0,0.00010941,2]
[408738043,1774182638194,-151.0,0.00010941,2]
[408738045,1774182638203,-151.0,0.00010941,2]
[408738047,1774182638212,-151.0,0.00010941,2]
[408738049,1774182638222,-151.0,0.00010941,2]
[408738051,1774182638231,-151.0,0.00010941,2]
[408738053,1774182638241,-151.0,0.00010941,2]
[408738055,1774182638251,-246.12567273,0.00010941,2]
[408738057,1774182638260,-151.0,0.00010945,2]
[408738059,1774182638269,-9999.99,0.00010945,2]
[408738061,1774182638279,-3974.1,0.00010945,2]
[408738063,1774182638290,-770.74317453,0.00010946,2]
[408738065,1774182638299,-770.74317453,0.00010946,2]
[408738067,1774182638308,-770.74317453,0.00010946,2]
[408738069,1774182638317,-770.74317453,0.00010946,2]
[408738071,1774182638327,-770.74317453,0.00010946,2]
[408738073,1774182638336,-770.74317453,0.00010946,2]
[408738075,1774182638345,-770.74317453,0.00010946,2]
[408738077,1774182638355,-770.74317453,0.00010946,2]
[408738079,1774182638364,-770.74317453,0.00010946,2]
[408738081,1774182638375,-770.74317453,0.00010946,2]
[408738083,1774182638385,-770.74317453,0.00010946,2]
[408738085,1774182638394,-770.74317453,0.00010946,2]
[408738086,1774182638404,-770.74317453,0.00010946,2]
[408738087,1774182638413,-770.74317453,0.00010946,2]
[408738088,1774182638423,-770.74317453,0.00010946,2]
[408738089,1774182638432,-770.74317453,0.00010946,2]
[408738090,1774182638441,-770.74317453,0.00010946,2]
[408738091,1774182638450,-770.74317453,0.00010946,2]
[408738092,1774182638460,-770.74317453,0.00010946,2]
[408738093,1774182638470,-770.74317453,0.00010946,2]
[408738094,1774182638479,-770.74317453,0.00010946,2]
[408738095,1774182638489,-770.74317453,0.00010946,2]
[408738096,1774182638499,-770.74317453,0.00010946,2]
[408738097,1774182638508,-770.74317453,0.00010946,2]
[408738098,1774182638518,-770.74317453,0.00010946,2]
[408738099,1774182638527,-770.74317453,0.00010946,2]
[408738100,1774182638537,-770.74317453,0.00010946,2]
[408738101,1774182638547,-770.74317453,0.00010946,2]
[408738102,1774182638556,-770.74317453,0.00010946,2]
[408738103,1774182638566,-770.74317453,0.00010946,2]
[408738104,1774182638575,-770.74317453,0.00010946,2]
[408738105,1774182638584,-770.74317453,0.00010946,2]
[408738106,1774182638593,-770.74317453,0.00010946,2]
[408738107,1774182638603,-770.74317453,0.00010946,2]
[408738108,1774182638612,-770.74317453,0.00010946,2]
[408738109,1774182638621,-770.74317453,0.00010946,2]
[408738110,1774182638631,-770.74317453,0.00010946,2]
[408738111,1774182638640,-770.74317453,0.00010946,2]
[408738112,1774182638649,-770.74317453,0.00010946,2]
[408738114,1774182638659,-770.74317453,0.00010946,2]
[408738116,1774182638668,-770.74317453,0.00010946,2]
[408738118,1774182638677,-770.74317453,0.00010946,2]
[408738120,1774182638687,-770.74317453,0.00010946,2]
[408738122,1774182638696,-770.74317453,0.00010946,2]
[408738124,1774182638705,-770.74317453,0.00010946,2]
[408738126,1774182638714,-770.74317453,0.00010946,2]
[408738128,1774182638723,-770.74317453,0.00010946,2]
[408738130,1774182638733,-770.74317453,0.00010946,2]
[408738132,1774182638742,-770.74317453,0.00010946,2]
[408738134,1774182638752,-770.74317453,0.00010946,2]
[408738135,1774182638761,-770.74317453,0.00010946,2]
[408738136,1774182638771,-770.74317453,0.00010946,2]
[408738137,1774182638780,-770.74317453,0.00010946,2]
[408738138,1774182638790,-805.77868993,0.00010946,2]
[408738139,1774182638801,-805.77868993,0.00010946,2]
[408738140,1774182638812,-805.77868993,0.00010946,2]
[408738141,1774182638821,-805.77868993,0.00010946,2]
[408738142,1774182638830,-805.77868993,0.00010946,2]
[408738143,1774182638839,-805.77868993,0.00010946,2]
[408738144,1774182638849,-805.77868993,0.00010946,2]
[408738145,1774182638858,-805.77868993,0.00010946,2]
[408738146,1774182638867,-805.77868993,0.00010946,2]
[408738147,1774182638876,-805.77868993,0.00010946,2]
[408738148,1774182638887,-805.77868993,0.00010946,2]
[408738149,1774182638896,-805.77868993,0.00010946,2]
[408738150,1774182638905,-805.77868993,0.00010946,2]
[408738151,1774182638915,-805.77868993,0.00010946,2]
[408738152,1774182638925,-805.77868993,0.00010946,2]
[408738153,1774182638935,-805.77868993,0.00010946,2]
[408738154,1774182638946,-805.77868993,0.00010946,2]
[408738155,1774182638955,-805.77868993,0.00010946,2]
[408738156,1774182638964,-805.77868993,0.00010946,2]
[408738157,1774182638974,-805.77868993,0.00010946,2]
[408738158,1774182638983,-805.77868993,0.00010946,2]
[408738159,1774182638994,-805.77868993,0.00010946,2]
[408738160,1774182639003,-805.77868993,0.00010946,2]
[408738161,1774182639012,-805.77868993,0.00010946,2]
[408738162,1774182639021,-805.77868993,0.00010946,2]
[408738163,1774182639031,-805.77868993,0.00010946,2]
[408738164,1774182639042,-805.77868993,0.00010946,2]
[408738165,1774182639052,-805.77868993,0.00010946,2]
[408738166,1774182639061,-805.77868993,0.00010946,2]
[408738167,1774182639071,-805.77868993,0.00010946,2]
[408738168,1774182639080,-805.77868993,0.00010946,2]
[408738169,1774182639090,-805.77868993,0.00010946,2]
[408738170,1774182639099,-805.77868993,0.00010946,2]
[408738171,1774182639108,-1529.83328686,0.00010946,2]
[408738172,1774182639118,-1529.83328686,0.00010946,2]
[408738173,1774182639128,-1529.83328686,0.00010946,2]
[408738174,1774182639137,-299.99,0.00010947,2]
[408738175,1774182639148,-1618.36,0.00010947,2]
[408738176,1774182639160,-9999.99,0.00010947,2]
[408738177,1774182639173,-7061.38,0.00010947,2]
[408738178,1774182639184,-150.99,0.00010947,2]
[408738179,1774182639193,-365.25492588,0.00010947,2]
[408738180,1774182639203,-500.0,0.00010947,2]
[408738181,1774182639212,-396.0923393,0.00010947,2]
[408738182,1774182639221,-500.0,0.00010947,2]
[408738183,1774182639230,-500.0,0.00010947,2]
[408738184,1774182639240,-500.0,0.00010947,2]
[408738185,1774182639249,-150.0,0.00010947,2]
[408738186,1774182639259,-300.0,0.00010947,2]
[408738187,1774182639268,-383024.46184228,0.00010948,2]
[408738188,1774182639286,-85400.00000012,0.00010948,2]
[408738191,1774182639917,-1096.199,0.00010846,2]
[408738192,1774182639930,-1397.55143136,0.00010846,2]
[408738193,1774182639940,-1031575.5381576,0.00010948,2]
[408738194,1774182639950,-32984.9071,0.00010949,2]
[408738195,1774182639960,-1000.0,0.00010949,2]
[408738196,1774182639969,-214.4442,0.00010949,2]
[408738197,1774182639979,-500.0,0.00010958,2]
[408738198,1774182639987,-500.0,0.00010958,3]
[408738199,1774182639996,-500.0,0.00010958,4]
[408738200,1774182640006,-500.0,0.00010958,5]
[408738201,1774182640015,-365.24,0.00010958,6]
[408738202,1774182640024,-500.0,0.00010973,2]
[408738203,1774182640033,-502.08274314,0.00010973,2]
[408738204,1774182640043,-500.0,0.00010973,2]
[408738205,1774182640051,-500.0,0.00010973,2]
[408738206,1774182640061,-505.73499567,0.00010973,2]
[408738207,1774182640070,-169.36164524,0.00010973,2]
[408738208,1774182640082,-500.0,0.00010973,2]
[408738209,1774182640091,-500.0,0.00010973,2]
[408738210,1774182640101,-549.96757564,0.00010973,2]
[408738211,1774182640110,-300.2235617,0.00010973,2]
[408738212,1774182640119,-167.37282869,0.00010973,2]
[408738213,1774182640128,-501.88886191,0.00010973,2]
[408738214,1774182640137,-500.0,0.00010973,2]
[408738215,1774182640146,-500.0,0.00010973,2]
[408738216,1774182640155,-500.0,0.00010973,2]
[408738217,1774182640164,-500.0,0.00010973,2]
[408738218,1774182640173,-150.0,0.00011,2]
[408738219,1774182640183,-250.0,0.00011,2]
[408738220,1774182640191,-10750.94,0.00011036,2]
[408738221,1774182640201,-500.0,0.00011048,2]
[408738222,1774182640210,-500.0,0.00011048,3]
[408738223,1774182640219,-500.0,0.00011048,4]
[408738224,1774182640228,-500.0,0.00011048,5]
[408738225,1774182640237,-500.0,0.00011048,6]
[408738226,1774182640246,-12380.72531718,0.00011099,2]
[408738227,1774182640255,-11619.45524816,0.00011099,2]
[408738228,1774182640264,-572.71,0.00011211,2]
[408738229,1774182640273,-500.0,0.00011358,2]
[408738230,1774182640282,-500.0,0.00011358,3]
[408738231,1774182640291,-500.0,0.00011358,4]
[408738232,1774182640300,-500.0,0.00011358,5]
[408738237,1774182640609,-500.0,0.00011358,6]
[408738241,1774182640642,-500.0,0.00011358,7]
[408738243,1774182640651,-500.0,0.00011358,8]
[408738245,1774182640661,-500.0,0.00011358,7]
[408738247,1774182640670,-500.0,0.00011358,8]
[408738249,1774182640685,-500.0,0.00011358,9]
[408738251,1774182640708,-192.99553635,0.00011364,2]
[408738253,1774182640719,-11619.45524813,0.00011409,2]
[408738254,1774182640729,-1002.28312036,0.00011421,2]
[408738255,1774182640739,-500.0,0.00011421,2]
[408738256,1774182640751,-1000.0,0.00011421,2]
[408738257,1774182640761,-1190.37877775,0.00011483,2]
[408738258,1774182640771,-572.71,0.00011485,2]
[408738259,1774182640783,-2351.0,0.00011494,2]
[408738260,1774182640793,-587.0,0.00011494,2]
[408738261,1774182640805,-433.0,0.00011494,2]
[408738262,1774182640816,-511.0,0.00011494,2]
[408738263,1774182640827,-1000.0,0.00011521,2]
[408738264,1774182640838,-505.56611791,0.00011521,2]
[408738265,1774182640848,-501.30299311,0.00011521,2]
[408738266,1774182640858,-500.0,0.00011521,2]
[408738267,1774182640868,-1590.0,0.00011616,2]
[408738268,1774182640880,-572.71,0.00011759,2]
[408738269,1774182640890,-5000.0,0.00011872,2]
[408738270,1774182640901,-1600.0,0.000119,4]
[408738271,1774182640910,-1500.0,0.00011968,2]
[408738272,1774182640919,-11619.45524813,0.00011971,2]
[408738273,1774182640929,-572.71,0.00012033,2]
[408738274,1774182640939,-50894.14,0.00012055,2]
[408738275,1774182640948,-9999.99,0.00012087,2]
[408738276,1774182640957,-13012.25,0.00012087,2]
[408738277,1774182640966,-22909.75,0.00012087,2]
[408738278,1774182640975,-1190.37877775,0.00012219,2]
[408738279,1774182640985,-572.73,0.00012307,2]
[408738280,1774182640995,-2000.0,0.00012516,2]
[408738281,1774182641004,-11619.45524813,0.00012532,2]
[408738282,1774182641014,-3292.0,0.00012643,2]
[408738283,1774182641023,-823.0,0.00012643,2]
[408738284,1774182641033,-736.0,0.00012643,2]
[408738285,1774182641042,-250.0,0.00012949,2]
[408738286,1774182641052,-1190.37877775,0.00012955,2]
[408738287,1774182641061,-2513.24282109,0.00013064,2]
[408738288,1774182641071,-11619.45524813,0.00013093,2]
[408738289,1774182641080,-263.83642895,0.00013374,2]
[408738290,1774182641090,-211.64,0.00013403,2]
[408738291,1774182641099,-3240.0,0.00013425,2]
[408738292,1774182641109,-436.23118,0.00013477,2]
[408738293,1774182641119,-354.726038,0.00013477,2]
[408738294,1774182641128,-11619.45524813,0.00013655,2]
[408738295,1774182641138,-521.23273696,0.00013698,2]
[408738296,1774182641147,-500.0,0.00013698,2]
[408738297,1774182641157,-500.0,0.00013698,2]
[408738298,1774182641166,-500.0,0.00013698,2]
[408738299,1774182641176,-500.0,0.00013698,2]
[408738300,1774182641185,-500.0,0.00013698,2]
[408738301,1774182641195,-500.0,0.00013698,2]
[408738302,1774182641205,-500.0,0.00013698,2]
[408738303,1774182641215,-500.0,0.00013698,2]
[408738304,1774182641224,-500.0,0.00013698,2]
[408738305,1774182641233,-500.0,0.00013698,2]
[408738306,1774182641243,-500.0,0.00013698,2]
[408738307,1774182641252,-500.0,0.00013698,2]
[408738308,1774182641261,-500.0,0.00013698,2]
[408738309,1774182641270,-500.0,0.00013698,2]
[408738310,1774182641279,-500.0,0.00013698,2]
[408738311,1774182641289,-500.0,0.00013698,2]
[408738312,1774182641298,-188.47970349,0.00013698,2]
[408738313,1774182641307,-500.0,0.00013698,2]
[408738314,1774182641317,-229.59071084,0.00013698,2]
[408738315,1774182641326,-500.0,0.00013698,2]
[408738316,1774182641335,-500.0,0.00013698,2]
[408738317,1774182641345,-500.0,0.00013698,2]
[408738318,1774182641360,-571.85993226,0.00013698,2]
[408738319,1774182641370,-500.0,0.00013698,2]
[408738320,1774182641380,-500.0,0.00013698,2]
[408738321,1774182641391,-500.0,0.00013698,2]
[408738322,1774182641402,-500.0,0.00013698,2]
[408738323,1774182641412,-500.0,0.00013698,2]
[408738324,1774182641422,-500.0,0.00013698,2]
[408738325,1774182641432,-645.93,0.00013698,2]
[408738326,1774182641443,-500.0,0.00013699,2]
[408738327,1774182641453,-500.0,0.00013699,2]
[408738328,1774182641463,-500.0,0.00013699,2]
[408738329,1774182641473,-500.0,0.00013699,2]
[408738330,1774182641491,-500.0,0.00013699,2]
[408738331,1774182641508,-500.0,0.00013699,2]
[408738332,1774182641518,-312.26124661,0.00013699,2]
[408738333,1774182641527,-150.49957673,0.000137,2]
[408738334,1774182641538,-634.75,0.000137,2]
[408738335,1774182641548,-1552.19,0.000137,2]
[408738336,1774182641558,-373.26,0.000137,2]
[408738337,1774182641567,-848.22,0.000137,2]
[408738338,1774182641576,-979.55,0.000137,2]
[408738339,1774182641585,-954.45,0.000137,2]
[408738340,1774182641595,-153312.42,0.00013752,2]
[408738341,1774182641604,-1700.0,0.000139,5]
[408738342,1774182641613,-4609.0,0.00013907,2]
[408738343,1774182641623,-1152.0,0.00013907,2]
[408738344,1774182641632,-952.0,0.00013907,2]
[408738345,1774182641641,-511.0,0.00014,2]
[408738346,1774182641651,-504.0,0.00014,2]
[408738347,1774182641659,-500.0,0.00014035,2]
[408738348,1774182641668,-11619.45524813,0.00014216,2]
[408738349,1774182641677,-1000.0,0.00014247,2]
[408738350,1774182641687,-1000.0,0.00014247,2]
[408738351,1774182641696,-500.0,0.00014247,2]
[408738352,1774182641706,-1000.0,0.00014247,2]
[408738353,1774182641716,-335.73,0.000146,2]
[408738354,1774182641725,-259.5,0.000146,2]
[408738355,1774182641734,-11619.45524813,0.00014777,2]
[408738356,1774182641743,-1209.15946236,0.00014795,2]
[408738357,1774182641753,-1500.0,0.00014795,2]
[408738358,1774182641762,-150.87,0.000149,2]
[408738359,1774182641771,-224.874871,0.00014992,7]
[408738360,1774182641780,-250.0,0.00015,2]
[408738361,1774182641790,-160.0,0.00015109,2]
[408738362,1774182641801,-160.0,0.00015109,2]
[408738363,1774182641813,-979.16666667,0.00015109,2]
[408738364,1774182641823,-10000.0,0.00015205,2]
[408738365,1774182641832,-6453.0,0.00015298,2]
[408738366,1774182641842,-1613.0,0.00015298,2]
[408738367,1774182641852,-11619.45524813,0.00015339,2]
[408738368,1774182641861,-573.03260881,0.00015342,2]
[408738369,1774182641872,-10750.94,0.0001545,2]
[408738370,1774182641881,-2001.41322195,0.000155,3]
[408738371,1774182641891,-167.975003,0.00015582,7]
[408738372,1774182641901,-300.0,0.000158,5]
[408738373,1774182641911,-300.0,0.000158,5]
[408738374,1774182641922,-672.0,0.00015824,2]
[408738375,1774182641931,-31720.00690847,0.000159,2]
[408738376,1774182641942,-300.0,0.000159,5]
[408738377,1774182641951,-300.0,0.000159,5]
[408738378,1774182641960,-11619.45524813,0.000159,2]
[408738379,1774182641971,-263.83642895,0.000159,2]
[408738380,1774182641980,-672.0,0.00015925,2]
[408738381,1774182641990,-672.0,0.00015997,2]
[408738382,1774182642001,-666.0,0.00015999,2]
[408738383,1774182642011,-666.0,0.00015999,2]
[408738384,1774182642021,-4070816.90285478,0.00016,2]
[408738397,1774182643499,-1137.5,0.00016,2]
[408738398,1774182643510,-3758.78088695,0.00016,2]
[408738399,1774182644112,-2305.75376585,0.0001132,2]
[408738400,1774182644131,-1551.0732492,0.0001132,2]
[408738401,1774182644156,-8523.89830204,0.0001132,2]
[408738402,1774182644165,-7162.85419209,0.00016,2]
[408738403,1774182644177,-686.47817513,0.00016,2]
[408738404,1774182645698,-1190.37877775,0.00013692,2]
[408738405,1774182645708,-8291.70940872,0.00016,2]
[408738407,1774182696897,392.29,7.249e-05,2]
[408738408,1774182697068,392.29,7.63e-05,2]
[408738409,1774182697170,392.29,8.012e-05,2]
[408738410,1774182697351,392.29,8.393e-05,2]
[408738411,1774182697554,392.29,8.775e-05,2]
[408738412,1774182697754,392.29,9.156e-05,2]
[408738413,1774182975004,-392.29,9.538e-05,2]
[408738414,1774182975033,-1852.42,9.766e-05,2]
[408738415,1774182975065,-2000.0,9.803e-05,2]
[408738416,1774182982178,-4475.75772242,9.919e-05,2]
[408738417,1774182982207,-392.29,9.919e-05,2]
[408738419,1774183136987,500.0,0.00010958,10]
[408738420,1774183137210,500.0,0.00010958,11]
[408738421,1774183137447,500.0,0.00010958,12]
[408738422,1774183137684,500.0,0.00010958,13]
[408738423,1774183137907,500.0,0.00010958,14]
[408738424,1774183138132,500.0,0.00010958,15]
[408738425,1774183138368,500.0,0.00010958,16]
[408738426,1774183138611,500.0,0.00012086,17]
[408738427,1774183290099,-2484.60824,9.565e-05,2]
[408738428,1774183290132,-246.0,9.614e-05,2]
[408738429,1774183290163,-1200.0,9.632e-05,2]
[408738430,1774183290325,-1559.55807516,9.633e-05,2]
[408738431,1774183295350,-4809.93807516,9.633e-05,2]
[408738432,1774183295376,-380.13384968,9.633e-05,2]
[408738433,1774183299516,-300.0,9.662e-05,2]
[408738434,1774183299544,-300.0,9.662e-05,2]
[408738435,1774183299571,-500.0,9.663e-05,2]
[408738436,1774183299598,-500.0,9.663e-05,2]
[408738437,1774183299625,-500.0,9.663e-05,2]
[408738438,1774183299652,-500.0,9.663e-05,2]
[408738439,1774183299679,-500.0,9.663e-05,2]
[408738440,1774183299706,-500.0,9.663e-05,2]
[408738441,1774183299737,-1354.59373068,9.686e-05,2]
[408738442,1774183299890,-90.82253864,9.686e-05,2]
[408738444,1774183498672,-500.0,9.663e-05,2]
[408738445,1774183498703,-169.36164524,9.663e-05,2]
[408738446,1774183498731,-250.0,9.674e-05,2]
[408738447,1774183498758,-250.0,9.681e-05,2]
[408738448,1774183498785,-150.0,9.685e-05,2]
[408738449,1774183498816,-300.0,9.685e-05,2]
[408738450,1774183498845,-500.0,9.685e-05,2]
[408738451,1774183498878,-1445.41626932,9.686e-05,2]
[408738452,1774183498910,-1425.03790156,9.686e-05,2]
[408738453,1774183499085,-20.37836776,9.686e-05,2]
[408738454,1774183499116,-1445.41626932,9.686e-05,2]
[408738455,1774183499147,-1445.41626932,9.686e-05,2]
[408738456,1774183499180,-1445.41626932,9.686e-05,2]
[408738457,1774183499283,-20.37836776,9.686e-05,2]
[408738458,1774183499297,-1286.75564856,9.686e-05,2]
[408738459,1774183499379,-138.282253,9.686e-05,2]
[408738460,1774183499409,-1445.41626932,9.686e-05,2]
[408738461,1774183499438,-1445.41626932,9.686e-05,2]
[408738462,1774183499467,-1445.41626932,9.686e-05,2]
[408738463,1774183499591,-1445.41626932,9.686e-05,2]
[408738464,1774183499622,-1445.41626932,9.686e-05,2]
[408738465,1774183499651,-1445.41626932,9.686e-05,2]
[408738466,1774183499722,-1445.41626932,9.686e-05,2]
[408738467,1774183499753,-1445.41626932,9.686e-05,2]
[408738468,1774183499784,-1445.41626932,9.686e-05,2]
[408738469,1774183499925,-933.04399284,9.686e-05,2]
[408738470,1774183499945,-512.37227648,9.686e-05,2]
[408738471,1774183499955,-933.04399284,9.686e-05,2]
[408738472,1774183499973,-512.37227648,9.686e-05,2]
[408738473,1774183499984,-815.1401076,9.686e-05,2]
[408738474,1774183504450,-1200.0,9.685e-05,2]
[408738475,1774183504947,-630.27616172,9.686e-05,2]
[408738476,1774183505019,-1445.41626932,9.686e-05,2]
[408738477,1774183505052,-1445.41626932,9.686e-05,2]
[408738478,1774183505105,-150.0,9.685e-05,2]
[408738479,1774183505133,-300.0,9.685e-05,2]
[408738480,1774183505165,-1445.41626932,9.686e-05,2]
[408738481,1774183505196,-1445.41626932,9.686e-05,2]
[408738482,1774183505228,-1445.41626932,9.686e-05,2]
[408738483,1774183505750,-557.79259928,9.686e-05,2]
[408738484,1774183505765,-427.51238408,9.686e-05,2]
[408738485,1774183505832,-460.11128596,9.686e-05,2]
[408738486,1774183505863,-1445.41626932,9.686e-05,2]
[408738487,1774183505893,-1445.41626932,9.686e-05,2]
[408738488,1774183505926,-1445.41626932,9.686e-05,2]
[408738489,1774183505976,-1445.41626932,9.686e-05,2]
[408738490,1774183506007,-1445.41626932,9.686e-05,2]
[408738491,1774183506037,-1445.41626932,9.686e-05,2]
[408738492,1774183506207,-407.28981216,9.686e-05,2]
[408738493,1774183506221,-1038.12645716,9.686e-05,2]
[408738494,1774183506230,-289.38592692,9.686e-05,2]
[408738495,1774183512508,-1156.0303424,9.686e-05,2]
[408738496,1774183512541,-1445.41626932,9.686e-05,2]
[408738497,1774183512573,-1445.41626932,9.686e-05,2]
[408738498,1774183512605,-460.8679686,9.686e-05,2]
[408738499,1774183512686,-984.54830072,9.686e-05,2]
[408738500,1774183584301,150.0,0.00016,120]
[408738501,1774183701561,5000.01,9.483e-05,2]
[408738502,1774183701583,905.33,9.483e-05,2]
[408738503,1774183775512,150.0,0.00016,120]
[408738504,1774183784344,171.31,7.57e-05,2]
[408738505,1774183784549,171.31,8.326e-05,2]
[408738506,1774183785134,171.31,9.083e-05,2]
[408738513,1774183832194,-664.54991355,9.59e-05,2]
[408738514,1774183832206,-935.45008645,9.59e-05,2]
[408738516,1774183832215,-250.0,9.607e-05,2]
[408738518,1774183832225,-200.0,9.623e-05,2]
[408738519,1774183832235,-211.0,9.662e-05,2]
[408738520,1774183832244,-10.27718513,9.662e-05,2]
[408738521,1774183832256,-1189.72281487,9.662e-05,2]
[408738523,1774183832265,-500.0,9.663e-05,2]
[408738524,1774183832274,-308.78460998,9.663e-05,2]
[408738525,1774183832286,-196.95038569,9.663e-05,2]
[408738527,1774183832295,-549.96757564,9.663e-05,2]
[408738529,1774183832305,-500.0,9.663e-05,2]
[408738531,1774183832314,-500.0,9.663e-05,2]
[408738533,1774183832323,-167.37282869,9.663e-05,2]
[408738535,1774183832332,-500.0,9.663e-05,2]
[408738537,1774183832342,-500.0,9.663e-05,2]
[408738539,1774183832352,-500.0,9.663e-05,2]
[408738540,1774183832361,-226.30101877,9.663e-05,2]
[408738541,1774183832373,-273.69898123,9.663e-05,2]
[408738542,1774183832383,-500.0,9.663e-05,2]
[408738543,1774183832396,-501.88886191,9.663e-05,2]
[408738544,1774183832406,-500.0,9.663e-05,2]
[408738545,1774183832415,-500.0,9.663e-05,2]
[408738546,1774183832425,-192.99553635,9.685e-05,2]
[408738547,1774183832435,-150.0,9.686e-05,2]
[408738548,1774183832445,-9506.32052767,9.687e-05,2]
[408738549,1774183833922,-748.00966555,9.687e-05,2]
[408738550,1774183833934,-80450.64720012,9.687e-05,2]
[408738551,1774183833945,-112221.84260666,9.687e-05,2]
[408738552,1774183833954,-153.51616239,9.722e-05,2]
[408738553,1774183833963,-158.49,9.722e-05,2]
[408738554,1774183833973,-171.31,9.84e-05,2]
[408738555,1774183833984,-151.0,0.0001,2]
[408738556,1774183833995,-151.0,0.0001,2]
[408738557,1774183834006,-151.0,0.0001,2]
[408738558,1774183834017,-151.0,0.0001,2]
[408738559,1774183834026,-151.0,0.0001,2]
[408738560,1774183834035,-500.0,0.0001,2]
[408738561,1774183834044,-151.0,0.0001,2]
[408738562,1774183834053,-500.0,0.0001,2]
[408738563,1774183834063,-151.0,0.0001,2]
[408738564,1774183834072,-500.0,0.0001,2]
[408738565,1774183834081,-151.0,0.0001,2]
[408738566,1774183834090,-500.0,0.0001,2]
[408738567,1774183834099,-151.0,0.0001,2]
[408738568,1774183834108,-204.92233644,0.0001,2]
[408738569,1774183834119,-295.07766356,0.0001,2]
[408738570,1774183834129,-151.0,0.0001,2]
[408738571,1774183834138,-500.0,0.0001,2]
[408738572,1774183834147,-151.0,0.0001,2]
[408738573,1774183834157,-500.0,0.0001,2]
[408738574,1774183834166,-151.0,0.0001,2]
[408738575,1774183834175,-500.0,0.0001,2]
[408738576,1774183834184,-200.0,0.0001,2]
[408738577,1774183834194,-151.0,0.0001,2]
[408738578,1774183834203,-500.0,0.0001,2]
[408738579,1774183834213,-500.0,0.0001,2]
[408738580,1774183834222,-500.0,0.0001,2]
[408738581,1774183834231,-500.0,0.0001,2]
[408738582,1774183834240,-151.0,0.0001,2]